bitfinex/quotes_SOLUSD_20240920
["timestamp","ask_amount","ask_price","bid_price","bid_amount"]
[1726840717088,23.776884,147.63,147.62,6.774]
[1726840719216,23.776884,147.64,147.61,7.0049903]
[1726840719395,23.776884,147.62,147.61,7.0049903]
[1726840720701,23.776884,147.62,147.61,0.2305903]
[1726840723224,7.05873764,147.68,147.64,6.7729]
[1726840723403,1.69344915,147.67,147.61,0.2305903]
[1726840723728,6.7719,147.67,147.62,6.7737]
[1726840724219,7.05873764,147.68,147.66,6.7722]
[1726840724611,6.7737,147.72,147.67,6.7718]
[1726840724807,8.46341111,147.71,147.66,6.7722]
[1726840725013,7.05727121,147.71,147.65,6.7726]
[1726840725212,6.771,147.69,147.65,6.7726]
[1726840725523,6.771,147.69,147.65,6.7727]
[1726840725722,23.902374,147.68,147.65,6.7727]
[1726840726103,23.902374,147.68,147.67,6.7718]
[1726840726104,23.776884,147.68,147.67,6.7718]
[1726840726411,23.776884,147.68,147.61,6.6067903]
[1726840726412,7.05727121,147.71,147.61,6.6067903]
[1726840726604,7.05727121,147.71,147.67,6.7717]
[1726840726797,13.82737121,147.71,147.67,6.7717]
[1726840726997,1.69303325,147.7,147.67,6.7717]
[1726840727201,8.46373325,147.7,147.66,6.7721]
[1726840727407,6.7714,147.68,147.64,6.7728]
[1726840727613,0.12549,147.64,147.61,0.2305903]
[1726840727825,23.776884,147.63,147.61,0.2305903]
[1726840728007,23.902374,147.64,147.61,7.0048903]
[1726840728817,23.776884,147.62,147.61,7.0048903]
[1726840731421,23.776884,147.62,147.61,0.2305903]
[1726840731621,25.47073057,147.62,147.61,0.2305903]
[1726840732510,23.776884,147.62,147.61,0.2305903]
[1726840733220,25.47071764,147.62,147.61,0.2305903]
[1726840734211,23.776884,147.62,147.61,0.2305903]
[1726840734413,23.776884,147.62,147.61,7.0051903]
[1726840736112,7.05932366,147.66,147.65,6.7727]
[1726840736427,1.6932413,147.69,147.62,6.1394]
[1726840736612,8.46490513,147.68,147.64,6.7731]
[1726840736820,7.05733655,147.71,147.61,0.2305903]
[1726840737129,6.7722,147.67,147.61,0.2305903]
[1726840737312,6.7726,147.66,147.61,0.2305903]
[1726840737507,7.05733655,147.71,147.61,0.2305903]
[1726840737508,6.7737,147.63,147.61,0.2305903]
[1726840737705,1.69399283,147.62,147.61,0.2305903]
[1726840737926,25.59636683,147.62,147.61,0.2305903]
[1726840738227,23.776884,147.62,147.61,0.2305903]
[1726840738403,50.676474,147.62,147.61,0.2305903]
[1726840739308,52.37062605,147.62,147.61,0.2305903]
[1726840740437,50.676474,147.62,147.61,0.2305903]
[1726840741522,43.902374,147.62,147.61,0.2305903]
[1726840742529,50.676474,147.62,147.61,0.2305903]
[1726840745916,23.7126,147.6,147.59,0.1030461]
[1726840746141,23.7126,147.6,147.57,0.0686858]
[1726840746142,6.7759,147.58,147.57,0.0686858]
[1726840746453,28.59591473,147.58,147.57,0.0686858]
[1726840747615,6.7773,147.55,147.54,0.3925719]
[1726840747817,6.7773,147.55,147.48,28.901]
[1726840747818,6.7789,147.52,147.48,28.901]
[1726840748033,25.47188496,147.51,147.48,28.901]
[1726840748315,32.37657496,147.51,147.48,22.1209]
[1726840748623,30.681574,147.51,147.45,6.7818]
[1726840749521,23.902374,147.51,147.44,16.4773]
[1726840749712,23.902374,147.51,147.47,7.2421577]
[1726840750112,32.37677742,147.51,147.47,7.2421577]
[1726840751116,30.681574,147.51,147.47,0.4612577]
[1726840751334,30.681574,147.51,147.47,7.2421577]
[1726840752124,30.681574,147.51,147.47,0.4612577]
[1726840752324,50.681574,147.51,147.47,0.4612577]
[1726840752821,52.37699105,147.51,147.47,0.4612577]
[1726840753041,50.681574,147.51,147.47,0.4612577]
[1726840753752,52.37695557,147.51,147.47,0.4612577]
[1726840754120,6.7805,147.48,147.47,0.4612577]
[1726840754424,30.682874,147.48,147.47,0.4612577]
[1726840755341,50.682874,147.48,147.47,0.4612577]
[1726840755523,52.37856117,147.48,147.47,0.4612577]
[1726840756636,50.682874,147.48,147.47,0.4612577]
[1726840757738,21.795,147.54,147.42,23.0525]
[1726840757739,21.795,147.54,147.42,6.0949]
[1726840757952,21.795,147.54,147.47,0.4925582]
[1726840758239,6.7797,147.5,147.47,0.4925582]
[1726840758420,1.69529319,147.49,147.47,0.4925582]
[1726840759030,23.776884,147.48,147.47,0.4925582]
[1726840760631,25.47229567,147.48,147.47,0.4925582]
[1726840760827,32.25279567,147.48,147.47,0.4925582]
[1726840761156,52.37828567,147.48,147.47,0.4925582]
[1726840761329,23.776884,147.44,147.41,0.4217806]
[1726840761526,23.776884,147.42,147.41,7.2054806]
[1726840764758,1.6958824,147.45,147.42,6.7829]
[1726840765055,23.776884,147.44,147.42,6.7829]
[1726840765265,24.03047889,147.53,147.43,1.35660498]
[1726840765462,24.03047889,147.53,147.46,6.7811]
[1726840765835,6.7793,147.51,147.46,6.7811]
[1726840766044,8.47490807,147.5,147.46,6.7811]
[1726840766238,1.69530807,147.5,147.44,16.9554]
[1726840766434,6.7807,147.48,147.43,6.7825]
[1726840766931,30.557884,147.47,147.43,6.7825]
[1726840767137,23.776884,147.45,147.43,6.7825]
[1726840767379,23.776884,147.43,147.41,17.3809806]
[1726840767654,23.776884,147.43,147.41,24.1645806]
[1726840768248,23.776884,147.44,147.41,24.1645806]
[1726840770052,23.776884,147.44,147.41,17.3809806]
[1726840770053,23.776884,147.43,147.41,17.3809806]
[1726840770254,25.47283916,147.42,147.41,0.4217806]
[1726840770461,23.776884,147.42,147.41,0.4217806]
[1726840771145,23.776884,147.42,147.41,7.2055806]
[1726840772247,23.776884,147.42,147.41,0.4217806]
[1726840773360,30.685674,147.42,147.41,0.4217806]
[1726840773671,23.902374,147.42,147.41,0.4217806]
[1726840775268,23.776884,147.42,147.41,0.4217806]
[1726840775471,7.0862652,147.46,147.42,6.783]
[1726840775769,7.0862652,147.46,147.45,6.7819]
[1726840775946,6.7811,147.47,147.43,6.7828]
[1726840776147,7.08559756,147.48,147.41,0.4217806]
[1726840776461,7.08559756,147.48,147.45,6.7818]
[1726840776636,1.69553221,147.47,147.45,6.7818]
[1726840777846,1.69553221,147.47,147.44,23.738]
[1726840778046,1.69553221,147.47,147.45,6.7819]
[1726840778244,7.08559756,147.48,147.46,6.7811]
[1726840778449,6.7797,147.5,147.46,6.7811]
[1726840778764,6.7797,147.5,147.44,23.7378]
[1726840778765,1.69533168,147.49,147.44,23.7378]
[1726840778947,6.7802,147.49,147.44,23.7378]
[1726840779262,8.47623002,147.48,147.44,23.7378]
[1726840779454,6.7809,147.48,147.44,16.9558]
[1726840779969,23.776884,147.46,147.43,22.0676]
[1726840780667,23.776884,147.48,147.44,6.782]
[1726840780856,23.776884,147.46,147.43,39.0244]
[1726840781063,23.776884,147.44,147.43,16.9569]
[1726840782462,23.776884,147.44,147.43,23.7397]
[1726840782666,20.0,147.48,147.43,16.9569]
[1726840782863,8.47646394,147.47,147.43,16.9569]
[1726840783172,26.7807,147.48,147.43,16.9569]
[1726840783571,26.7807,147.48,147.44,6.7824]
[1726840783755,8.47659969,147.47,147.43,23.7396]
[1726840783954,23.776884,147.46,147.43,23.7396]
[1726840784157,23.776884,147.46,147.41,0.4217806]
[1726840784158,6.7815,147.46,147.42,6.7832]
[1726840784372,23.776884,147.45,147.42,6.7832]
[1726840784567,1.69575818,147.44,147.41,7.2053806]
[1726840784886,23.776884,147.43,147.41,7.2053806]
[1726840787160,23.776884,147.44,147.41,7.2053806]
[1726840787674,23.776884,147.44,147.42,6.7833]
[1726840787968,23.776884,147.45,147.42,6.7833]
[1726840789185,25.47261212,147.45,147.42,6.7833]
[1726840789360,23.776884,147.45,147.42,6.7833]
[1726840789758,23.776884,147.46,147.43,6.7827]
[1726840790271,30.558384,147.46,147.43,6.7827]
[1726840791374,23.776884,147.46,147.42,16.9579]
[1726840791566,23.776884,147.44,147.42,16.9579]
[1726840791954,23.776884,147.45,147.42,23.7408]
[1726840792158,23.776884,147.45,147.43,6.7828]
[1726840792454,30.558384,147.46,147.42,23.741]
[1726840793173,23.776884,147.44,147.42,23.741]
[1726840793366,23.776884,147.46,147.43,6.7827]
[1726840793675,6.7795,147.51,147.46,6.7815]
[1726840793890,22.6096,147.52,147.47,6.781]
[1726840794059,7.08231658,147.52,147.49,6.78]
[1726840794375,7.08231658,147.52,147.48,6.7804]
[1726840794579,7.08231658,147.52,147.47,6.7809]
[1726840794580,1.69503736,147.51,147.47,6.7809]
[1726840794762,8.47433736,147.51,147.47,6.7809]
[1726840794964,6.7796,147.5,147.46,23.7349]
[1726840795480,1.6952566,147.49,147.46,23.7349]
[1726840795778,8.4753566,147.49,147.44,6.7823]
[1726840795979,23.776884,147.47,147.43,6.7827]
[1726840796179,23.776884,147.45,147.41,7.0646806]
[1726840796371,23.776884,147.43,147.41,7.2054806]
[1726840797574,23.776884,147.43,147.42,6.7833]
[1726840797884,6.90609,147.48,147.43,6.7824]
[1726840798063,7.08231658,147.52,147.44,18.31186291]
[1726840798064,23.902374,147.5,147.44,18.31186291]
[1726840798270,0.12549,147.5,147.46,6.7815]
[1726840799158,6.90509,147.5,147.45,6.7818]
[1726840799359,1.69541439,147.49,147.45,6.7818]
[1726840799768,23.776884,147.49,147.46,6.7813]
[1726840799986,23.902374,147.5,147.46,6.7813]
[1726840800282,23.776884,147.48,147.45,6.7818]
[1726840800488,23.776884,147.48,147.41,0.4217806]
[1726840800489,23.776884,147.46,147.41,0.4217806]
[1726840800665,23.776884,147.46,147.43,16.9566]
[1726840800870,23.776884,147.44,147.41,0.4217806]
[1726840801072,23.776884,147.42,147.41,7.2055806]
[1726840801288,23.776884,147.42,147.41,0.4217806]
[1726840801463,23.776884,147.42,147.41,7.2055806]
[1726840801657,6.7811,147.47,147.42,6.7829]
[1726840801958,23.776884,147.46,147.41,0.4217806]
[1726840802183,6.5269,147.54,147.42,6.4196]
[1726840802374,16.2688,147.57,147.46,16.2918]
[1726840802689,7.082316,147.6,147.51,6.7792]
[1726840803003,7.0936345,147.61,147.51,6.7792]
[1726840803160,2.05496352,147.61,147.51,6.7792]
[1726840803358,6.7764,147.57,147.51,6.7792]
[1726840803556,0.3187345,147.61,147.51,6.7792]
[1726840803773,6.7777,147.55,147.46,22.5846]
[1726840803972,16.94,147.58,147.5,6.7796]
[1726840804195,20.0,147.56,147.46,22.5846]
[1726840804392,1.69464342,147.55,147.51,6.7787]
[1726840804571,20.0,147.56,147.46,22.5846]
[1726840804769,6.7777,147.55,147.5,6.7794]
[1726840804994,20.0,147.56,147.46,22.5846]
[1726840804995,20.0,147.56,147.51,6.7789]
[1726840805185,1.69462387,147.55,147.51,6.7789]
[1726840805379,1.69462387,147.55,147.49,6.7799]
[1726840805581,20.0,147.56,147.46,22.5846]
[1726840805784,23.902374,147.51,147.46,6.7813]
[1726840806098,23.902374,147.51,147.45,6.7819]
[1726840806298,23.902374,147.49,147.43,6.1828]
[1726840806496,23.776884,147.47,147.43,12.9656]
[1726840806675,23.776884,147.47,147.46,6.7815]
[1726840806876,38.9581,147.55,147.42,16.3108]
[1726840806877,0.12549,147.54,147.42,16.3108]
[1726840807097,0.12549,147.54,147.43,1.35608402]
[1726840807297,23.776884,147.51,147.46,6.7811]
[1726840807476,23.776884,147.51,147.45,16.9548]
[1726840807477,6.90509,147.5,147.45,23.7365]
[1726840807798,25.47226118,147.49,147.45,16.9548]
[1726840807999,0.12549,147.48,147.42,23.0938]
[1726840808186,0.12549,147.48,147.42,16.3108]
[1726840808497,0.12549,147.5,147.43,1.35638121]
[1726840808700,23.902374,147.5,147.44,6.7819]
[1726840808899,1.69536005,147.49,147.44,6.7819]
[1726840809071,6.90689,147.47,147.42,23.0941]
[1726840809271,1.69536005,147.49,147.42,16.3108]
[1726840809272,23.776884,147.49,147.42,16.3108]
[1726840809899,23.776884,147.47,147.44,6.7823]
[1726840810077,23.776884,147.49,147.45,6.7817]
[1726840810397,30.556984,147.49,147.44,6.7823]
[1726840810593,1.69544244,147.48,147.44,6.7823]
[1726840810797,6.90689,147.47,147.41,7.2054806]
[1726840810995,0.12549,147.45,147.41,0.4217806]
[1726840811199,8.60344911,147.45,147.41,0.4217806]
[1726840811507,0.12549,147.48,147.42,1.35668564]
[1726840811683,20.0,147.5,147.45,6.7815]
[1726840811995,26.7797,147.5,147.41,0.4217806]
[1726840812202,1.69534198,147.49,147.45,6.7816]
[1726840812595,6.7796,147.51,147.45,16.9539]
[1726840812779,22.9844,147.55,147.45,16.9539]
[1726840812780,6.7787,147.53,147.45,16.9539]
[1726840813094,20.0,147.52,147.48,6.7805]
[1726840813299,6.7774,147.55,147.5,6.7792]
[1726840813492,8.47270294,147.54,147.49,23.7295]
[1726840813697,6.7776,147.55,147.5,6.7795]
[1726840813896,22.4833,147.56,147.51,6.7791]
[1726840814085,23.5263,147.59,147.49,16.9494]
[1726840814599,23.5263,147.59,147.53,6.7779]
[1726840814600,7.08034738,147.55,147.53,6.7779]
[1726840814779,6.7756,147.59,147.54,6.7778]
[1726840815176,13.85557395,147.59,147.54,6.7778]
[1726840815386,13.85557395,147.59,147.47,20.0]
[1726840815387,7.07997395,147.59,147.47,20.0]
[1726840815601,6.7764,147.57,147.52,6.7783]
[1726840815800,7.07997395,147.59,147.53,6.7782]
[1726840815801,6.90149,147.58,147.53,6.7782]
[1726840815997,0.12549,147.56,147.46,37.37516866]
[1726840816393,0.12549,147.56,147.46,6.4362]
[1726840816705,6.7769,147.56,147.51,6.7791]
[1726840816881,6.7769,147.56,147.52,6.7787]
[1726840817292,1.69462722,147.55,147.46,6.4362]
[1726840817507,0.12549,147.57,147.46,6.4362]
[1726840817805,6.7769,147.56,147.51,6.7788]
[1726840818008,20.0,147.58,147.46,56.4362]
[1726840818178,20.0,147.58,147.47,1.35553396]
[1726840818382,20.0,147.58,147.47,0.12549]
[1726840818601,26.776,147.58,147.53,6.7781]
[1726840818803,26.776,147.58,147.46,56.4362]
[1726840818804,6.7778,147.54,147.49,6.7799]
[1726840818981,1.69473171,147.53,147.5,6.7795]
[1726840819177,20.0,147.58,147.5,6.7795]
[1726840819178,1.69475585,147.57,147.5,6.7795]
[1726840819394,6.7791,147.52,147.47,6.7808]
[1726840819780,6.7784,147.53,147.48,6.7803]
[1726840819990,1.69508527,147.52,147.49,6.7799]
[1726840820206,0.12549,147.52,147.48,6.7804]
[1726840820411,1.82057702,147.52,147.48,6.7804]
[1726840820723,0.12549,147.51,147.45,15.3362]
[1726840820894,6.7797,147.5,147.45,6.7816]
[1726840821201,1.69534291,147.49,147.44,6.7822]
[1726840821404,0.12549,147.51,147.45,6.7818]
[1726840821600,6.7797,147.5,147.45,6.7818]
[1726840822196,0.12549,147.51,147.46,16.9527]
[1726840822395,8.60012564,147.51,147.46,23.7341]
[1726840822617,6.7799,147.5,147.46,16.9527]
[1726840822782,1.69536856,147.49,147.43,17.1987486]
[1726840823107,1.69536856,147.49,147.43,0.2418486]
[1726840823310,21.69536856,147.49,147.43,0.2418486]
[1726840823490,26.90789,147.44,147.43,0.2418486]
[1726840823686,20.12549,147.44,147.43,0.2418486]
[1726840823891,26.90649,147.47,147.43,0.2418486]
[1726840824092,0.12549,147.47,147.43,0.2418486]
[1726840824298,26.90669,147.47,147.43,0.2418486]
[1726840824506,20.12549,147.47,147.43,7.0246486]
[1726840824708,1.69569494,147.48,147.44,6.7823]
[1726840825007,21.69569494,147.48,147.44,6.7823]
[1726840825206,0.12549,147.47,147.43,7.0246486]
[1726840825407,0.12549,147.45,147.43,0.2418486]
[1726840825605,1.82132175,147.45,147.43,0.2418486]
[1726840826109,6.7824,147.44,147.43,0.2418486]
[1726840826324,6.90789,147.44,147.43,0.2418486]
[1726840826899,26.90789,147.44,147.43,0.2418486]
[1726840830417,6.782,147.45,147.43,0.2418486]
[1726840830613,6.7815,147.46,147.43,0.2418486]
[1726840830822,1.69591136,147.45,147.43,0.2418486]
[1726840831001,6.7824,147.44,147.43,0.2418486]
[1726840831903,6.7819,147.45,147.43,0.2418486]
[1726840832216,1.8214147,147.44,147.43,0.2418486]
[1726840832421,8.6038147,147.44,147.43,0.2418486]
[1726840832712,6.90789,147.44,147.43,0.2418486]
[1726840833314,26.90789,147.44,147.43,0.2418486]
[1726840833909,6.90789,147.44,147.43,0.2418486]
[1726840835623,0.12549,147.44,147.43,0.2418486]
[1726840836125,1.6959743,147.44,147.43,0.2418486]
[1726840836324,1.8214643,147.44,147.43,0.2418486]
[1726840836699,7.07619841,147.46,147.43,0.2418486]
[1726840836901,7.07619841,147.46,147.45,6.7819]
[1726840837123,6.7793,147.51,147.46,6.7813]
[1726840837443,7.07248664,147.51,147.44,16.9555]
[1726840837611,6.78,147.5,147.45,6.7815]
[1726840837999,7.07248664,147.51,147.44,23.7379]
[1726840838199,6.7805,147.49,147.44,23.7379]
[1726840838516,6.7809,147.48,147.44,23.7378]
[1726840838713,6.781,147.47,147.44,16.9555]
[1726840839021,0.12549,147.48,147.44,23.7378]
[1726840839218,7.07248664,147.51,147.45,6.7817]
[1726840839420,8.47508958,147.5,147.46,6.7811]
[1726840839799,7.07248664,147.51,147.49,6.7801]
[1726840840233,7.07248664,147.51,147.48,6.7804]
[1726840840400,1.69518395,147.5,147.45,16.9544]
[1726840840716,8.47498395,147.5,147.45,23.736]
[1726840840919,8.47498395,147.5,147.46,6.7814]
[1726840841230,7.07248664,147.51,147.47,16.952]
[1726840841401,7.07248664,147.51,147.48,6.7801]
[1726840841720,1.6951227,147.5,147.47,16.952]
[1726840842227,1.69531391,147.49,147.46,6.781]
[1726840842445,8.47541391,147.49,147.45,6.7819]
[1726840842603,1.69531391,147.49,147.45,6.7819]
[1726840843407,1.69531391,147.49,147.46,6.7813]
[1726840843605,1.69538387,147.48,147.46,6.7813]
[1726840843806,6.90519,147.5,147.46,6.7813]
[1726840844413,0.12549,147.51,147.43,0.2418486]
[1726840844624,13.84755373,147.53,147.48,6.7801]
[1726840844820,6.7788,147.52,147.48,6.7801]
[1726840845330,1.69514723,147.51,147.48,6.7801]
[1726840845507,6.7801,147.49,147.46,16.9531]
[1726840845702,1.6953823,147.48,147.46,16.9531]
[1726840845903,0.12549,147.51,147.48,16.9511]
[1726840846128,1.82062842,147.52,147.48,23.7315]
[1726840846510,0.12549,147.52,147.48,23.7315]
[1726840847225,7.06915373,147.53,147.5,6.7794]
[1726840847438,1.69493485,147.52,147.5,6.7794]
[1726840847634,7.06915373,147.53,147.5,6.7794]
[1726840848009,7.06915373,147.53,147.47,16.3731]
[1726840848211,7.06915373,147.53,147.51,6.779]
[1726840848425,16.0785836,147.59,147.51,6.779]
[1726840848733,13.84644641,147.55,147.5,6.7795]
[1726840848935,8.47266158,147.54,147.5,6.7795]
[1726840849111,6.7784,147.53,147.48,6.7804]
[1726840850338,0.12549,147.52,147.48,6.7804]
[1726840850834,6.90429,147.52,147.48,6.7804]
[1726840851022,0.12549,147.5,147.44,16.9554]
[1726840851227,6.7801,147.49,147.44,16.9554]
[1726840851412,6.782,147.45,147.43,0.2418486]
[1726840851612,6.7816,147.46,147.43,0.2418486]
[1726840851828,1.69574593,147.45,147.43,0.2418486]
[1726840852027,8.47774593,147.45,147.43,0.2418486]
[1726840852212,1.69574593,147.45,147.43,0.2418486]
[1726840853026,26.90789,147.44,147.43,0.2418486]
[1726840855236,26.90879,147.42,147.41,0.1030461]
[1726840855440,28.60543177,147.42,147.41,0.1030461]
[1726840856232,26.90879,147.42,147.41,0.1030461]
[1726840858344,28.60539305,147.42,147.41,0.1030461]
[1726840859542,35.68273558,147.42,147.41,0.1030461]
[1726840860442,35.68273307,147.42,147.41,0.1030461]
[1726840860944,33.98613253,147.42,147.41,0.1030461]
[1726840861237,7.07734253,147.42,147.41,0.1030461]
[1726840861948,6.2865,147.49,147.41,0.1030461]
[1726840862246,7.07484068,147.45,147.42,6.7832]
[1726840862548,6.7807,147.48,147.43,6.7827]
[1726840862720,7.07474215,147.49,147.46,6.7811]
[1726840862920,7.07474215,147.49,147.47,6.7808]
[1726840863128,6.7774,147.55,147.47,1.35617626]
[1726840863321,8.7248674,147.54,147.44,0.12549]
[1726840863747,1.9470674,147.54,147.44,0.12549]
[1726840864128,1.9470674,147.54,147.5,6.7796]
[1726840864329,1.94707525,147.54,147.5,6.7796]
[1726840864838,1.94707525,147.54,147.43,30.93896866]
[1726840865047,1.94707525,147.54,147.42,20.12549]
[1726840865343,6.7783,147.53,147.47,6.7809]
[1726840865552,1.69498198,147.52,147.47,6.7809]
[1726840866051,20.2522661,147.54,147.41,6.2471461]
[1726840866248,0.12549,147.53,147.42,30.0]
[1726840866847,0.12549,147.51,147.41,6.2471461]
[1726840867143,6.7815,147.46,147.42,16.9581]
[1726840867472,6.781,147.47,147.42,16.9581]
[1726840867743,6.7821,147.45,147.41,6.2471461]
[1726840868452,6.7821,147.45,147.42,1.35665806]
[1726840868626,6.7815,147.46,147.42,6.7833]
[1726840868827,6.7809,147.48,147.43,6.7827]
[1726840869251,6.90569,147.49,147.44,6.7823]
[1726840869454,8.47591765,147.48,147.44,6.7823]
[1726840869645,23.3922,147.53,147.45,6.7818]
[1726840869830,6.7797,147.5,147.45,6.7818]
[1726840870036,1.69527652,147.52,147.44,16.9558]
[1726840870037,1.69519225,147.49,147.44,16.9558]
[1726840870232,6.7809,147.48,147.44,16.9558]
[1726840870449,6.7811,147.47,147.43,6.7826]
[1726840871050,0.12549,147.51,147.44,1.35637086]
[1726840871282,23.776884,147.49,147.44,6.7823]
[1726840871565,23.776884,147.47,147.43,23.7391]
[1726840871966,30.557884,147.47,147.43,16.9563]
[1726840872147,23.776884,147.47,147.43,23.7391]
[1726840872349,23.776884,147.47,147.44,6.7823]
[1726840872540,23.776884,147.48,147.45,6.7818]
[1726840872747,6.7788,147.52,147.46,1.35615423]
[1726840872935,6.7792,147.51,147.46,6.7814]
[1726840873140,6.7792,147.51,147.45,16.9543]
[1726840873357,6.7792,147.51,147.46,6.7814]
[1726840873565,6.7788,147.52,147.45,16.9543]
[1726840873750,6.7788,147.52,147.47,6.7809]
[1726840873954,7.07028487,147.53,147.47,6.7809]
[1726840874150,25.47182375,147.52,147.47,6.7809]
[1726840874360,7.07028487,147.53,147.5,6.7796]
[1726840874562,7.0304661,147.54,147.49,6.78]
[1726840874767,7.0304661,147.54,147.5,1.35574859]
[1726840874946,6.7782,147.53,147.48,6.7805]
[1726840875472,6.7787,147.52,147.48,6.7805]
[1726840875763,6.7783,147.53,147.48,6.7805]
[1726840875961,23.776884,147.52,147.48,6.7805]
[1726840877064,23.776884,147.52,147.49,6.78]
[1726840877464,0.2522661,147.54,147.49,6.78]
[1726840877465,24.0291501,147.54,147.49,6.78]
[1726840877663,25.72383911,147.54,147.49,6.78]
[1726840878357,23.776884,147.52,147.47,6.7806]
[1726840878569,32.25058967,147.52,147.47,6.7806]
[1726840878870,30.555684,147.52,147.47,6.7809]
[1726840880243,23.776884,147.52,147.44,50.0]
[1726840880451,23.776884,147.53,147.49,6.7799]
[1726840880649,23.776884,147.53,147.43,0.12549]
[1726840880650,23.776884,147.51,147.43,0.12549]
[1726840880850,23.776884,147.51,147.47,6.7807]
[1726840881054,23.776884,147.51,147.47,23.7325]
[1726840881552,23.776884,147.51,147.48,6.7805]
[1726840882077,6.7783,147.53,147.49,6.78]
[1726840882260,23.776884,147.51,147.47,23.7326]
[1726840882486,23.776884,147.51,147.48,6.7805]
[1726840882961,30.556184,147.51,147.47,23.7327]
[1726840883572,30.555684,147.52,147.47,23.7327]
[1726840883971,30.555684,147.52,147.48,6.7805]
[1726840884364,23.776884,147.52,147.49,6.7798]
[1726840884568,6.7783,147.53,147.49,6.7798]
[1726840884753,6.7783,147.53,147.48,6.7805]
[1726840885065,1.69479478,147.52,147.47,16.9518]
[1726840885377,1.94714065,147.54,147.47,16.9518]
[1726840885554,7.07042704,147.53,147.47,16.9518]
[1726840885755,23.776884,147.52,147.47,16.9518]
[1726840887352,23.776884,147.52,147.49,6.78]
[1726840889063,23.776884,147.53,147.44,71.7075]
[1726840889265,23.776884,147.53,147.5,6.7793]
[1726840889455,24.0291501,147.54,147.51,6.7787]
[1726840889659,24.0291501,147.54,147.5,6.7795]
[1726840890168,30.8070501,147.54,147.5,6.7795]
[1726840891259,32.50172206,147.54,147.49,23.7299]
[1726840891466,23.776884,147.52,147.49,23.7299]
[1726840891660,6.7785,147.53,147.49,23.7299]
[1726840891865,7.0301661,147.54,147.5,6.7793]
[1726840892172,7.0301661,147.54,147.49,16.9499]
[1726840892173,23.776884,147.53,147.49,23.7297]
[1726840893859,23.276884,147.53,147.49,23.7297]
[1726840894175,0.2522661,147.54,147.5,6.7795]
[1726840894357,0.2522661,147.54,147.51,6.779]
[1726840894563,0.2522661,147.54,147.5,6.7795]
[1726840894771,0.2522661,147.54,147.51,6.7792]
[1726840894981,0.2522661,147.54,147.52,1.35565586]
[1726840895162,0.2522661,147.54,147.47,19.33225461]
[1726840895370,0.2522661,147.54,147.51,6.7789]
[1726840895573,0.2522661,147.54,147.47,19.33225461]
[1726840895777,0.2522661,147.54,147.53,6.7782]
[1726840907183,0.2522661,147.54,147.47,1.70920445]
[1726840907184,6.7795,147.51,147.47,6.7809]
[1726840907510,6.7788,147.52,147.47,6.7808]
[1726840907798,23.776884,147.51,147.46,32.2583]
[1726840908304,23.776884,147.51,147.48,6.7805]
[1726840908497,23.776884,147.53,147.48,16.9507]
[1726840908807,23.776884,147.53,147.5,6.7795]
[1726840909008,0.2522661,147.54,147.47,50.0]
[1726840909215,0.2522661,147.54,147.48,19.33225461]
[1726840909392,0.2522661,147.54,147.53,6.7782]
[1726840910184,0.2522661,147.54,147.52,23.7245]
[1726840910390,0.2522661,147.54,147.52,16.9459]
[1726840911313,0.2522661,147.54,147.53,6.7782]
[1726840914700,0.2522661,147.54,147.52,23.7246]
[1726840915003,0.2522661,147.54,147.52,16.9459]
[1726840915214,0.2522661,147.54,147.52,23.7245]
[1726840916696,0.2522661,147.54,147.53,8.13368273]
[1726840916891,0.2522661,147.54,147.53,6.7782]
[1726840917612,0.2522661,147.54,147.52,16.9459]
[1726840917613,0.2522661,147.54,147.52,23.7245]
[1726840918497,0.2522661,147.54,147.53,6.7782]
[1726840918700,0.2522661,147.54,147.52,23.7245]
[1726840919805,0.2522661,147.54,147.53,8.13369814]
[1726840920113,0.2522661,147.54,147.53,6.7782]
[1726840922099,0.2522661,147.54,147.53,8.13346382]
[1726840922299,0.2522661,147.54,147.53,6.7782]